bitfinex/quotes_BTCUSD_20250108
["timestamp","ask_amount","ask_price","bid_price","bid_amount"]
[1736343977985,0.00010128,95381.0,95380.0,0.53189137]
[1736343980145,0.00010128,95381.0,95380.0,0.44995579]
[1736343980765,0.00010128,95381.0,95380.0,0.30295579]
[1736343980973,0.00010128,95381.0,95380.0,0.30595579]
[1736343981183,0.00010128,95381.0,95380.0,0.30295579]
[1736343981385,0.00010128,95381.0,95380.0,0.29995579]
[1736343981563,0.00110128,95381.0,95380.0,0.63789137]
[1736343981738,0.00110128,95381.0,95380.0,0.63989137]
[1736343983154,0.00010128,95381.0,95380.0,0.63189137]
[1736343983358,0.00010128,95381.0,95380.0,0.64267938]
[1736343983562,0.209578,95430.0,95401.0,0.081]
[1736343983769,0.209608,95417.0,95402.0,0.00104804]
[1736343984040,0.10429976,95416.0,95403.0,0.209637]
[1736343984383,0.20961,95415.0,95403.0,0.22036263]
[1736343984577,0.10429976,95414.0,95403.0,0.22036263]
[1736343984805,0.209615,95413.0,95404.0,0.05081257]
[1736343985044,0.10429976,95412.0,95404.0,0.05081257]
[1736343985236,0.10429976,95412.0,95404.0,0.06153632]
[1736343986373,0.209619,95411.0,95404.0,0.01072375]
[1736343986587,0.20963,95406.0,95404.0,0.01072375]
[1736343986825,0.16185976,95405.0,95404.0,0.01072375]
[1736343987030,0.419269,95404.0,95401.0,0.001]
[1736343987237,0.209639,95402.0,95389.0,0.0791]
[1736343987438,0.10429976,95401.0,95389.0,0.32792496]
[1736343987971,0.209645,95399.0,95389.0,0.11825896]
[1736343988140,0.10429976,95398.0,95389.0,0.11825896]
[1736343988524,0.10429976,95398.0,95390.0,0.209665]
[1736343988686,0.10429976,95398.0,95390.0,0.41933]
[1736343988906,0.10429976,95398.0,95397.0,0.20965]
[1736343989131,0.16185976,95398.0,95397.0,0.20965]
[1736343989571,0.05756,95398.0,95397.0,0.20965]
[1736343990364,0.05756,95398.0,95397.0,0.01073689]
[1736343990810,0.05756,95398.0,95391.0,0.209663]
[1736343991049,0.06256,95398.0,95397.0,0.01073689]
[1736343991220,0.05756,95398.0,95397.0,0.01073689]
[1736343991391,0.05756,95398.0,95391.0,0.209663]
[1736343991732,0.05756,95398.0,95396.0,0.209652]
[1736343992164,0.05756,95398.0,95397.0,0.01073689]
[1736343992761,0.05956,95398.0,95392.0,0.07183802]
[1736343993008,0.05956,95398.0,95397.0,0.01073689]
[1736343993203,0.06056,95398.0,95396.0,0.209652]
[1736343993414,0.10429976,95397.0,95393.0,0.01074439]
[1736343993618,0.10429976,95397.0,95389.0,0.08938116]
[1736343993831,0.10429976,95397.0,95390.0,0.209665]
[1736343994130,0.10429976,95397.0,95390.0,0.26053812]
[1736343994504,0.10429976,95397.0,95394.0,0.209655]
[1736343994889,0.10629976,95397.0,95394.0,0.209655]
[1736343995091,0.10429976,95397.0,95394.0,0.209655]
[1736343995383,0.05756,95398.0,95394.0,0.27826032]
[1736343995567,0.002,95397.0,95394.0,0.27826032]
[1736343995869,0.05756,95398.0,95394.0,0.209655]
[1736343996624,0.05756,95398.0,95397.0,0.001]
[1736343996908,0.16185976,95398.0,95397.0,0.001]
[1736343997266,0.16185976,95398.0,95389.0,0.08938116]
[1736343997267,0.16185976,95398.0,95390.0,0.209665]
[1736343997586,0.10429976,95397.0,95390.0,0.209665]
[1736343998116,0.10629976,95397.0,95390.0,0.209665]
[1736343998308,0.10429976,95397.0,95394.0,0.209656]
[1736343998740,0.10429976,95397.0,95395.0,0.01074064]
[1736343999117,0.10429976,95397.0,95394.0,0.209656]
[1736343999284,0.10429976,95397.0,95396.0,0.01073876]
[1736343999488,0.10429976,95397.0,95396.0,0.03097759]
[1736343999723,0.10529976,95397.0,95396.0,0.04171635]
[1736344001023,0.10529976,95397.0,95396.0,0.01073876]
[1736344001844,0.12829976,95397.0,95396.0,0.01073876]
[1736344002047,0.023,95396.0,95372.0,0.0001704]
[1736344002254,0.10429976,95385.0,95372.0,0.00028785]
[1736344002465,0.209678,95384.0,95372.0,0.00028785]
[1736344002695,0.209698,95376.0,95373.0,0.00767879]
[1736344002894,0.2097,95374.0,95372.0,0.00028785]
[1736344003097,0.10429976,95373.0,95372.0,0.00028785]
[1736344003677,0.10429976,95373.0,95372.0,0.00128785]
[1736344003879,0.16185976,95373.0,95372.0,0.00128785]
[1736344005565,0.16185976,95373.0,95372.0,0.00028785]
[1736344005786,0.17225572,95373.0,95372.0,0.00028785]
[1736344006030,0.19525572,95373.0,95372.0,0.00028785]
[1736344006226,0.46673016,95373.0,95372.0,0.00028785]
[1736344007229,0.47573016,95373.0,95372.0,0.00028785]
[1736344007853,0.47873016,95373.0,95372.0,0.00028785]
[1736344008600,0.37873016,95373.0,95372.0,0.00028785]
[1736344008799,0.36973016,95373.0,95372.0,0.00028785]
[1736344009046,0.1377742,95373.0,95372.0,0.00028785]
[1736344009255,0.17385976,95373.0,95372.0,0.00028785]
[1736344009490,0.11629976,95373.0,95372.0,0.00028785]
[1736344009676,0.17385976,95373.0,95372.0,0.00028785]
[1736344010318,0.17085976,95373.0,95372.0,0.00028785]
[1736344010848,0.17485976,95373.0,95372.0,0.00028785]
[1736344011610,0.11729976,95373.0,95372.0,0.00028785]
[1736344011873,0.17485976,95373.0,95372.0,0.07688785]
[1736344012086,0.11729976,95373.0,95372.0,0.10554824]
[1736344012291,0.17485976,95373.0,95372.0,0.12701199]
[1736344013012,0.013,95373.0,95372.0,0.27806045]
[1736344013177,0.004,95373.0,95372.0,0.32211199]
[1736344013590,0.009,95373.0,95372.0,0.2934516]
[1736344014188,0.004,95373.0,95372.0,0.2934516]
[1736344014385,0.004,95373.0,95372.0,0.2954516]
[1736344014596,0.004,95373.0,95372.0,0.1454516]
[1736344014796,0.10829976,95373.0,95372.0,0.1003516]
[1736344014999,0.10829976,95373.0,95372.0,0.0237516]
[1736344015200,0.10829976,95373.0,95372.0,0.0217516]
[1736344015394,0.10829976,95373.0,95372.0,0.02343371]
[1736344015800,0.10429976,95373.0,95372.0,0.04489746]
[1736344016015,0.05756,95375.0,95372.0,0.04489746]
[1736344016418,0.05752,95377.0,95372.0,0.04489746]
[1736344016616,0.10429976,95376.0,95372.0,0.04489746]
[1736344016840,0.10429976,95376.0,95373.0,0.04749685]
[1736344017241,0.10429976,95376.0,95375.0,0.209698]
[1736344017645,0.10429976,95376.0,95375.0,0.23115048]
[1736344018724,0.16181976,95376.0,95375.0,0.23115048]
[1736344019493,0.16181976,95376.0,95375.0,0.23315048]
[1736344020131,0.05752,95376.0,95375.0,0.23315048]
[1736344020300,0.05752,95376.0,95375.0,0.23415048]
[1736344020902,0.209662,95392.0,95375.0,0.28194391]
[1736344021302,0.209665,95390.0,95375.0,0.28194391]
[1736344021481,0.10429976,95389.0,95375.0,0.28194391]
[1736344021896,0.419339,95388.0,95375.0,0.02445248]
[1736344022104,0.209696,95376.0,95375.0,0.003]
[1736344022327,0.31399576,95376.0,95375.0,0.002]
[1736344022972,0.209699,95375.0,95372.0,0.00028785]
[1736344023184,0.209702,95373.0,95372.0,0.00028785]
[1736344023408,0.31400176,95373.0,95372.0,0.00028785]
[1736344023833,0.58700176,95373.0,95372.0,0.00028785]
[1736344024052,0.58700176,95373.0,95353.0,0.0001704]
[1736344024053,0.15,95361.0,95353.0,0.0001704]
[1736344024265,0.25429976,95355.0,95354.0,0.00027168]
[1736344024480,0.46404176,95355.0,95354.0,0.00027168]
[1736344024918,0.48704176,95355.0,95354.0,0.00027168]
[1736344025775,0.37156176,95355.0,95354.0,0.00027168]
[1736344025998,0.31404176,95355.0,95354.0,0.00027168]
[1736344026208,0.37156176,95355.0,95354.0,0.00027168]
[1736344027433,0.37956176,95355.0,95354.0,0.00027168]
[1736344027837,0.37156176,95355.0,95354.0,0.00027168]
[1736344028907,0.39706176,95355.0,95354.0,0.00027168]
[1736344029124,0.39906176,95355.0,95354.0,0.00027168]
[1736344029531,0.40606176,95355.0,95354.0,0.00027168]
[1736344029736,0.66246673,95355.0,95354.0,0.00027168]
[1736344029940,0.76046673,95355.0,95354.0,0.00027168]
[1736344030154,0.76846673,95355.0,95354.0,0.00027168]
[1736344030373,0.74906176,95355.0,95354.0,0.00027168]
[1736344030804,0.75706176,95355.0,95354.0,0.00027168]
[1736344031013,0.69154176,95355.0,95354.0,0.00027168]
[1736344031217,0.74906176,95355.0,95354.0,0.00027168]
[1736344031430,0.75806176,95355.0,95354.0,0.00027168]
[1736344031630,0.86236152,95355.0,95354.0,0.00027168]
[1736344032312,0.75806176,95355.0,95354.0,0.00027168]
[1736344033024,0.75606176,95355.0,95354.0,0.00027168]
[1736344033569,0.76206176,95355.0,95354.0,0.00027168]
[1736344033793,0.50454176,95355.0,95354.0,0.00027168]
[1736344033995,0.56206176,95355.0,95354.0,0.00027168]
[1736344034200,0.56193558,95355.0,95354.0,0.00027168]
[1736344034418,0.50441558,95355.0,95354.0,0.00027168]
[1736344034628,0.33141558,95355.0,95354.0,0.00027168]
[1736344034841,0.38897558,95355.0,95354.0,0.00027168]
[1736344035115,0.33141558,95355.0,95354.0,0.00027168]
[1736344035291,0.38897558,95355.0,95354.0,0.00027168]
[1736344036366,0.40297558,95355.0,95354.0,0.00027168]
[1736344036791,0.41097558,95355.0,95354.0,0.00127168]
[1736344037011,0.39697558,95355.0,95354.0,0.00027168]
[1736344037239,0.54697558,95355.0,95354.0,0.00027168]
[1736344037514,0.55597558,95355.0,95354.0,0.00027168]
[1736344037774,0.56197558,95355.0,95354.0,0.00127168]
[1736344038020,0.54697558,95355.0,95354.0,0.00027168]
[1736344038774,0.66631694,95355.0,95354.0,0.00127168]
[1736344039000,0.77131694,95355.0,95354.0,0.00227168]
[1736344039942,0.67131694,95355.0,95354.0,0.00227168]
[1736344040355,0.57131694,95355.0,95354.0,0.00227168]
[1736344040556,0.51375694,95355.0,95354.0,0.00227168]
[1736344040760,0.57131694,95355.0,95354.0,0.00227168]
[1736344041523,0.56631694,95355.0,95354.0,0.00127168]
[1736344042630,0.56931694,95355.0,95354.0,0.00127168]
[1736344042830,0.56031694,95355.0,95354.0,0.00027168]
[1736344043369,0.55731694,95355.0,95354.0,0.00027168]
[1736344043805,0.75731694,95355.0,95354.0,0.00027168]
[1736344044406,0.76631694,95355.0,95354.0,0.00027168]
[1736344045347,0.75731694,95355.0,95354.0,0.00027168]
[1736344045550,0.76631694,95355.0,95354.0,0.00027168]
[1736344046308,0.66131694,95355.0,95354.0,0.00027168]
[1736344047221,0.65731694,95355.0,95354.0,0.00027168]
[1736344047643,0.85402193,95355.0,95354.0,0.00027168]
[1736344047851,0.75731694,95355.0,95354.0,0.00027168]
[1736344048250,0.76331694,95355.0,95354.0,0.00127168]
[1736344048690,0.77231694,95355.0,95354.0,0.00127168]
[1736344050152,0.76331694,95355.0,95354.0,0.00127168]
[1736344050579,0.77231694,95355.0,95354.0,0.00127168]
[1736344051270,0.76631694,95355.0,95354.0,0.00027168]
[1736344051913,0.77231694,95355.0,95354.0,0.00127168]
[1736344052195,0.71475694,95355.0,95354.0,0.00127168]
[1736344052749,0.77227694,95355.0,95354.0,0.00127168]
[1736344053524,0.123,95352.0,95351.0,0.0001704]
[1736344053745,0.22729976,95352.0,95351.0,0.0001704]
[1736344054704,0.47729976,95352.0,95351.0,0.0001704]
[1736344054904,0.35,95347.0,95346.0,8e-07]
[1736344055127,0.47729976,95347.0,95346.0,8e-07]
[1736344056509,0.48629976,95347.0,95346.0,8e-07]
[1736344058359,0.54381976,95347.0,95346.0,8e-07]
[1736344059063,0.54781976,95347.0,95346.0,8e-07]
[1736344060769,0.44781976,95347.0,95346.0,8e-07]
[1736344060971,0.54781976,95347.0,95346.0,8e-07]
[1736344061566,0.34781976,95347.0,95346.0,8e-07]
[1736344061768,0.29029976,95347.0,95346.0,8e-07]
[1736344061978,0.19781976,95347.0,95346.0,8e-07]
[1736344063618,0.11729976,95347.0,95346.0,0.01303647]
[1736344063964,0.17481976,95347.0,95346.0,0.03459788]
[1736344064178,0.17481976,95347.0,95346.0,0.09613647]
[1736344064393,0.013,95347.0,95346.0,0.11769788]
[1736344065228,0.009,95347.0,95346.0,0.11769788]
[1736344065467,0.009,95347.0,95346.0,0.10466221]
[1736344065643,0.10429976,95347.0,95346.0,0.10466221]
[1736344065840,0.10629976,95347.0,95346.0,0.10466221]
[1736344065993,0.10629976,95347.0,95346.0,0.10566221]
[1736344065994,0.008,95347.0,95346.0,0.10566221]
[1736344066203,0.01067556,95387.0,95356.0,0.0774]
[1736344066429,0.10429976,95386.0,95381.0,0.0494]
[1736344066835,0.10429976,95386.0,95382.0,0.2311092]
[1736344067083,0.05752,95385.0,95383.0,0.04074299]
[1736344067301,0.10429976,95384.0,95383.0,0.04074299]
[1736344067538,0.10429976,95384.0,95383.0,0.06262031]
[1736344067764,0.10429976,95384.0,95383.0,0.02187732]
[1736344068178,0.10429976,95384.0,95381.0,0.0494]
[1736344068564,0.10429976,95384.0,95382.0,0.02188108]
[1736344069094,0.10429976,95384.0,95381.0,0.0494]
[1736344069385,0.10429976,95384.0,95383.0,0.02187732]
[1736344069599,0.10429976,95384.0,95382.0,0.02188108]
[1736344069834,0.10429976,95384.0,95381.0,0.0494]
[1736344070029,0.10429976,95384.0,95382.0,0.01268]
[1736344070263,0.10729976,95384.0,95382.0,0.03456108]
[1736344070493,0.10829976,95384.0,95382.0,0.01268]
[1736344070700,0.10829976,95384.0,95383.0,0.02187732]
[1736344070920,0.10829976,95384.0,95382.0,0.01268]
[1736344071494,0.10829976,95384.0,95383.0,0.006208]
[1736344072318,0.10729976,95384.0,95383.0,0.006208]
[1736344073026,0.10829976,95384.0,95383.0,0.006208]
[1736344074202,0.11229976,95384.0,95383.0,0.006208]
[1736344075143,0.11229976,95384.0,95381.0,0.0494]
[1736344075279,0.11229976,95384.0,95383.0,0.02187732]
[1736344075680,0.11129976,95384.0,95381.0,0.0494]
[1736344075897,0.11229976,95384.0,95383.0,0.02187732]
[1736344076098,0.11229976,95384.0,95381.0,0.0494]
[1736344076294,0.11229976,95384.0,95383.0,0.02187732]
[1736344076512,0.11129976,95384.0,95381.0,0.06208]
[1736344076687,0.10429976,95384.0,95381.0,0.06208]
[1736344076902,0.05752,95385.0,95382.0,0.02188108]
[1736344077119,5.092e-05,95387.0,95375.0,0.0774]
[1736344077120,0.10429976,95383.0,95375.0,0.0774]
[1736344077318,0.10429976,95376.0,95366.0,0.0493]
[1736344077519,0.10429976,95371.0,95364.0,0.0824]
[1736344077747,0.209719,95366.0,95364.0,0.0824]
[1736344077979,0.209733,95360.0,95355.0,0.0797]
[1736344078189,0.10429976,95357.0,95355.0,0.0797]
[1736344078442,0.05748,95356.0,95355.0,0.0797]
[1736344078668,0.16177976,95356.0,95355.0,0.0797]
[1736344079073,0.16177976,95356.0,95355.0,0.0922]
[1736344079514,0.16177976,95356.0,95355.0,0.09335263]
[1736344080404,0.16177976,95356.0,95355.0,0.11549391]
[1736344080637,0.16177976,95356.0,95355.0,0.10299391]
[1736344080862,0.16177976,95356.0,95355.0,0.02329391]
[1736344081285,0.16177976,95356.0,95355.0,0.00115263]
[1736344081938,0.16177976,95356.0,95355.0,0.00015263]
[1736344082159,0.16177976,95356.0,95355.0,0.00115263]
[1736344082787,0.33477976,95356.0,95355.0,0.00115263]
[1736344083004,0.41341682,95356.0,95355.0,0.00015263]
[1736344083244,0.69301682,95356.0,95355.0,6.3e-07]
[1736344083474,0.61537976,95356.0,95355.0,6.3e-07]
[1736344084761,0.15,95347.0,95336.0,0.00021462]
[1736344084979,0.173,95336.0,95335.0,8.53e-05]
[1736344085189,0.173,95336.0,95335.0,0.00013617]
[1736344085190,0.33477976,95336.0,95335.0,0.00013617]
[1736344087344,0.33777976,95336.0,95335.0,0.00013617]
[1736344087556,0.35841999,95336.0,95335.0,0.00013617]
[1736344087988,0.36886595,95336.0,95335.0,0.00013617]
[1736344090164,0.37786595,95336.0,95335.0,0.00113617]
[1736344093864,0.37486595,95336.0,95335.0,0.00113617]
[1736344094384,0.37786595,95336.0,95335.0,0.00113617]
[1736344094570,0.36886595,95336.0,95335.0,0.00013617]
[1736344094793,0.36886595,95336.0,95335.0,0.00113617]
[1736344094998,0.37786595,95336.0,95335.0,0.00113617]
[1736344098403,0.57786595,95336.0,95335.0,1.7e-07]
[1736344098833,0.58206695,95336.0,95335.0,1.7e-07]
[1736344099447,0.66446695,95336.0,95335.0,1.7e-07]
[1736344099657,0.15,95326.0,95302.0,0.0763]
[1736344099917,0.273,95323.0,95322.0,9e-07]
[1736344100094,0.37729976,95323.0,95322.0,0.00050749]
[1736344100562,0.48711176,95323.0,95322.0,0.00050749]
[1736344100778,0.64463176,95323.0,95322.0,0.00050749]
[1736344101407,0.65504439,95323.0,95322.0,0.00050749]
[1736344101802,0.66004439,95323.0,95322.0,0.00150749]
[1736344102010,0.50252439,95323.0,95322.0,0.00150749]
[1736344102248,0.56004439,95323.0,95322.0,0.00150749]
[1736344102894,0.53704439,95323.0,95322.0,0.00150749]
[1736344103111,0.53704439,95323.0,95322.0,0.00050749]
[1736344103112,0.49752439,95323.0,95322.0,0.00050749]
[1736344103316,0.56004439,95323.0,95322.0,0.00150749]
[1736344103577,0.50252439,95323.0,95322.0,0.00150749]
[1736344103782,0.56004439,95323.0,95322.0,0.00150749]
[1736344104025,0.46411176,95323.0,95322.0,0.00050749]
[1736344104207,0.37163176,95323.0,95322.0,0.0081753]
[1736344104454,0.37463176,95323.0,95322.0,0.0081753]
[1736344104694,0.37463176,95323.0,95322.0,0.00050749]
[1736344105386,0.54763176,95323.0,95322.0,0.00050749]
[1736344106245,0.54463176,95323.0,95322.0,0.00050749]
[1736344106466,0.54763176,95323.0,95322.0,0.00050749]
[1736344106884,0.54463176,95323.0,95322.0,0.00050749]
[1736344107283,0.54663176,95323.0,95322.0,0.00050749]
[1736344107696,0.55563176,95323.0,95322.0,0.00050749]
[1736344108342,0.53259176,95323.0,95322.0,0.00050749]
[1736344109010,0.55559176,95323.0,95322.0,0.00050749]
[1736344110574,0.54659176,95323.0,95322.0,0.00050749]
[1736344111244,0.85089152,95323.0,95322.0,4.9e-07]
[1736344111450,0.209867,95298.0,95297.0,0.0111646]
[1736344111668,0.52164676,95298.0,95297.0,0.01131652]
[1736344112634,0.54464676,95298.0,95297.0,0.01131652]
[1736344112828,0.64464676,95298.0,95297.0,0.01131652]
[1736344113029,0.64464676,95298.0,95289.0,1e-06]
[1736344113030,0.459885,95290.0,95289.0,1e-06]
[1736344113233,0.459885,95290.0,95271.0,0.00783071]
[1736344113234,0.209925,95272.0,95271.0,0.00783071]
[1736344113444,0.209925,95272.0,95271.0,0.00798366]
[1736344113445,0.80222476,95272.0,95271.0,0.00798366]
[1736344113665,0.359951,95260.0,95250.0,8.54e-05]
[1736344114036,0.48725076,95260.0,95259.0,0.01266474]
[1736344114464,0.48725076,95260.0,95259.0,0.00015255]
[1736344114681,0.46425076,95260.0,95259.0,0.00015255]
[1736344114899,0.16177976,95260.0,95259.0,0.13035255]
[1736344115107,0.16177976,95260.0,95259.0,0.14340489]
[1736344115313,0.16177976,95260.0,95259.0,0.14417694]
[1736344119207,0.16177976,95260.0,95259.0,0.09427694]
[1736344119414,0.16177976,95260.0,95259.0,0.01397694]
[1736344119620,0.16177976,95260.0,95259.0,0.00015255]
[1736344120937,0.16477976,95260.0,95259.0,0.00015255]
[1736344121353,0.16177976,95260.0,95259.0,0.00015255]
[1736344121995,0.16377976,95260.0,95259.0,0.00015255]
[1736344126250,0.18677976,95260.0,95259.0,0.00015255]
[1736344127484,0.33677976,95260.0,95259.0,0.00015255]
[1736344127688,0.42559513,95260.0,95259.0,0.00015255]
[1736344127933,0.42559513,95260.0,95250.0,8.54e-05]
[1736344127934,0.582971,95251.0,95250.0,7.5e-07]
[1736344128142,0.382995,95240.0,95239.0,8.54e-05]
[1736344128351,0.54481476,95240.0,95239.0,8.54e-05]
[1736344128559,1.06963476,95240.0,95239.0,8.54e-05]
[1736344129409,1.09026182,95240.0,95239.0,8.54e-05]
[1736344130551,1.09926182,95240.0,95239.0,8.54e-05]
[1736344131602,1.10966767,95240.0,95239.0,8.54e-05]
[1736344134804,1.20966767,95240.0,95239.0,8.54e-05]
[1736344135838,1.10966767,95240.0,95239.0,8.54e-05]
[1736344136046,0.173,95239.0,95227.0,8.54e-05]
[1736344136258,0.33732176,95228.0,95227.0,8.54e-05]
[1736344137552,0.33747431,95228.0,95227.0,8.54e-05]
[1736344139156,0.35083937,95228.0,95227.0,8.54e-05]
[1736344139693,0.34783937,95228.0,95227.0,8.54e-05]
[1736344139899,0.33747431,95228.0,95227.0,8.54e-05]
[1736344140321,0.34047431,95228.0,95227.0,8.54e-05]
[1736344141168,0.10745231,95228.0,95227.0,8.54e-05]
[1736344141367,0.16497231,95228.0,95227.0,8.54e-05]
[1736344142282,0.37499431,95228.0,95227.0,8.54e-05]
[1736344142690,0.16497231,95228.0,95227.0,8.54e-05]
[1736344142914,0.16197231,95228.0,95227.0,8.54e-05]
[1736344143120,0.10445231,95228.0,95227.0,8.54e-05]
[1736344143337,0.10845231,95228.0,95227.0,0.0766854]
[1736344143547,0.10845231,95228.0,95227.0,0.08447603]
[1736344143756,0.10845231,95228.0,95227.0,0.09837272]
[1736344143965,0.00415255,95228.0,95227.0,0.30839672]
[1736344144190,0.004203,95276.0,95227.0,0.30839672]
[1736344144191,0.05752,95232.0,95228.0,0.0825]
[1736344144405,0.05752,95237.0,95234.0,0.0825]
[1736344144623,0.16181976,95236.0,95234.0,0.0825]
[1736344144835,0.05752,95235.0,95234.0,0.0825]
[1736344145048,0.16181976,95235.0,95234.0,0.0825]
[1736344145902,0.16181976,95235.0,95234.0,0.09559854]
[1736344147273,0.16181976,95235.0,95234.0,0.09759854]
[1736344147916,0.16181976,95235.0,95234.0,0.09559854]
[1736344148315,0.16181976,95235.0,95234.0,0.10159854]
[1736344149750,0.16181976,95235.0,95234.0,0.09959854]
[1736344149969,0.16181976,95235.0,95234.0,0.10259854]
[1736344150404,0.16181976,95235.0,95234.0,0.09859854]
[1736344150615,0.16281976,95235.0,95234.0,0.10059854]
[1736344150840,0.16181976,95235.0,95234.0,0.09859854]
[1736344151309,0.16281976,95235.0,95234.0,0.10459854]
[1736344152505,0.10529976,95235.0,95234.0,0.0915]
[1736344152668,0.16281976,95235.0,95234.0,0.0915]
[1736344153279,0.37282576,95235.0,95234.0,0.0915]
[1736344154118,0.37282576,95235.0,95234.0,0.0885]
[1736344154370,0.37182576,95235.0,95234.0,0.0845]
[1736344154708,0.16181976,95235.0,95234.0,0.0845]
[1736344155339,0.16181976,95235.0,95234.0,0.09779854]
[1736344155564,0.16181976,95235.0,95234.0,0.10771344]
[1736344155938,0.16181976,95235.0,95234.0,0.10971344]
[1736344156146,0.10429976,95235.0,95234.0,0.10971344]
[1736344156377,0.209924,95273.0,95253.0,0.0826]
[1736344158565,0.16181976,95265.0,95257.0,0.06058061]
[1736344159167,0.16181976,95265.0,95257.0,0.00987779]
[1736344159387,0.209942,95264.0,95254.0,0.0484]
[1736344159574,0.419894,95262.0,95257.0,0.002]
[1736344159770,0.10429976,95261.0,95257.0,0.002]
[1736344159971,0.05748,95260.0,95257.0,0.002]
[1736344160175,0.10429976,95259.0,95258.0,0.02317618]
[1736344160377,0.10429976,95259.0,95258.0,0.00987618]
[1736344160545,0.10429976,95259.0,95254.0,0.0484]
[1736344160752,0.10429976,95259.0,95257.0,0.003]
[1736344161165,0.10429976,95259.0,95258.0,0.00987618]
[1736344162431,0.10429976,95259.0,95258.0,0.003]
[1736344162625,0.10429976,95259.0,95258.0,0.04727248]
[1736344163029,0.10429976,95259.0,95258.0,0.04427248]
[1736344163435,0.10429976,95259.0,95258.0,0.04727248]
[1736344163657,0.10429976,95259.0,95258.0,0.01287618]
[1736344163852,0.10429976,95259.0,95258.0,0.00987618]
[1736344164058,0.10429976,95259.0,95258.0,0.01187618]
[1736344164257,0.10429976,95259.0,95258.0,0.002]
[1736344164505,0.10429976,95259.0,95258.0,0.01187618]
[1736344164707,0.10429976,95259.0,95258.0,0.01628762]
[1736344164922,0.10429976,95259.0,95258.0,0.0261638]
[1736344165732,0.10429976,95259.0,95258.0,0.0241638]
[1736344165948,0.10429976,95259.0,95258.0,0.0261638]
[1736344166098,0.10429976,95259.0,95258.0,0.0281638]
[1736344166929,0.10429976,95259.0,95258.0,0.01387618]
[1736344167334,0.10429976,95259.0,95258.0,0.004]
[1736344169038,0.10429976,95259.0,95258.0,0.0802]
[1736344169276,0.16177976,95259.0,95258.0,0.09007618]
[1736344169403,0.16177976,95259.0,95258.0,0.1200807]
[1736344169617,0.10429976,95259.0,95258.0,0.1200807]
[1736344169825,0.00015295,95273.0,95271.0,0.15]
[1736344170028,0.00015295,95273.0,95272.0,0.47614944]
[1736344170236,0.05748,95293.0,95282.0,0.209903]
[1736344170443,0.05748,95293.0,95292.0,0.127]
[1736344170641,0.16177976,95293.0,95292.0,0.13845824]
[1736344171925,0.16177976,95293.0,95292.0,0.13559368]
[1736344172146,0.16177976,95293.0,95292.0,0.13659368]
[1736344172495,0.16177976,95293.0,95292.0,0.13559368]
[1736344172704,0.16177976,95293.0,95292.0,0.17014225]
[1736344173041,0.10429976,95293.0,95292.0,0.17014225]
[1736344173169,0.16177976,95293.0,95292.0,0.17014225]
[1736344173396,0.10429976,95293.0,95292.0,0.38002325]
[1736344173633,0.10429976,95293.0,95292.0,0.17014225]
[1736344174967,0.10429976,95293.0,95292.0,0.18073986]
[1736344175785,0.10429976,95293.0,95292.0,0.17014225]
[1736344176939,0.10529976,95293.0,95292.0,0.17014225]
[1736344179063,0.10529976,95293.0,95292.0,0.17114225]
[1736344179725,0.001,95293.0,95292.0,0.42114225]
[1736344179924,0.001,95293.0,95292.0,0.52114225]
[1736344180340,0.0001708,95305.0,95298.0,0.687967]
[1736344180685,0.0001708,95305.0,95298.0,0.78292251]
[1736344180922,0.0001708,95305.0,95298.0,0.79150772]
[1736344182884,0.0011708,95299.0,95298.0,0.79750772]
[1736344185985,0.0021708,95299.0,95298.0,0.80650772]
[1736344186329,0.0021708,95299.0,95298.0,0.60650772]
[1736344186542,0.0021708,95299.0,95298.0,0.80650772]
[1736344187413,0.0021708,95299.0,95298.0,0.80936945]
[1736344187634,0.0021708,95299.0,95298.0,0.80650772]
[1736344189629,0.0021708,95299.0,95298.0,0.80936945]
[1736344194998,0.0021708,95299.0,95298.0,1.04287358]
[1736344196401,8e-07,95299.0,95298.0,1.04287358]
[1736344196635,8e-07,95299.0,95298.0,0.80936945]
[1736344197898,8e-07,95299.0,95298.0,0.70936945]
[1736344198110,8e-07,95299.0,95298.0,0.80936945]
[1736344201328,8e-07,95299.0,95298.0,0.31521394]
[1736344201530,8e-07,95299.0,95298.0,0.23631394]
[1736344201957,0.10430056,95299.0,95298.0,0.23631394]
[1736344202166,0.10430056,95299.0,95298.0,0.02644694]
[1736344202410,0.10430056,95299.0,95298.0,0.02044694]
[1736344202623,0.10430056,95299.0,95298.0,0.02444694]
[1736344202824,0.10429976,95299.0,95298.0,0.02743229]
[1736344203030,0.10429976,95299.0,95298.0,0.03724396]
[1736344203653,0.10429976,95299.0,95298.0,0.03324396]
[1736344203863,0.0001708,95305.0,95304.0,0.209854]
[1736344204079,0.00032372,95305.0,95304.0,0.209854]
[1736344204285,0.00032372,95305.0,95304.0,0.2649523]
[1736344204491,0.00032372,95305.0,95304.0,0.5149523]
[1736344204696,0.00032372,95305.0,95304.0,0.5943523]
[1736344204924,7.2e-07,95305.0,95304.0,0.6943523]
[1736344205130,7.2e-07,95305.0,95304.0,0.7400523]
[1736344206218,7.2e-07,95305.0,95304.0,0.77271255]
[1736344206429,7.2e-07,95305.0,95304.0,0.77871255]
[1736344206643,0.15,95368.0,95304.0,0.77871255]
[1736344206644,0.0574,95344.0,95340.0,0.1269207]
[1736344206854,0.00068074,95362.0,95353.0,0.209745]
[1736344207068,0.0574,95361.0,95354.0,0.00972146]
[1736344207414,0.00068074,95362.0,95355.0,0.209742]
[1736344207628,0.00068074,95362.0,95357.0,0.209738]
[1736344207834,0.00068074,95362.0,95341.0,0.01269207]
[1736344207835,0.00068074,95362.0,95358.0,0.00971502]
[1736344208086,0.16169976,95361.0,95359.0,0.419466]
[1736344208282,0.00068074,95362.0,95361.0,0.209729]
[1736344208490,0.05808074,95362.0,95361.0,0.21943919]
[1736344209070,0.00068074,95362.0,95361.0,0.21943919]
[1736344209277,0.00068074,95362.0,95361.0,0.26235641]
[1736344209476,0.00268074,95362.0,95361.0,0.26235641]
[1736344210445,0.00768074,95362.0,95361.0,0.26235641]
[1736344211802,0.00755445,95362.0,95361.0,0.26235641]
[1736344215426,0.00755445,95362.0,95361.0,0.36235641]
[1736344215633,0.00755445,95362.0,95361.0,0.51235641]
[1736344215840,0.00755445,95362.0,95361.0,0.69415641]
[1736344216161,0.0001706,95389.0,95374.0,0.6383]
[1736344216361,0.00015348,95375.0,95374.0,0.79069976]
[1736344216582,4.8e-07,95375.0,95374.0,0.82338903]
[1736344217343,0.0001706,95389.0,95388.0,0.582669]
[1736344217344,6e-07,95389.0,95388.0,0.582669]
[1736344217692,0.0001306,95401.0,95400.0,0.2]
[1736344217994,0.0001306,95401.0,95400.0,0.46605381]
[1736344218228,0.0001306,95401.0,95400.0,0.26500596]
[1736344218448,0.0001306,95401.0,95400.0,0.31929044]
[1736344219093,0.0001306,95401.0,95400.0,0.21929044]